[Event "Early-Titled-Tuesday-Blitz-April-16-2024"]
[Site "Chess.com"]
[Date "2024.04.16"]
[Round "3"]
[White "RantomOpening"]
[Black "littlepinkyboy"]
[Result "1-0"]
[WhiteElo "2529"]
[BlackElo "2682"]
[TimeControl "180+1"]
[EndTime "8:28:47 PDT"]
[Termination "RantomOpening won by resignation"]

1. d4 {[%clk 0:02:57.3]} 1... d5 {[%clk 0:02:56.1]} 2. c4 {[%clk 0:02:56.5]}
2... c6 {[%clk 0:02:52.4]} 3. Nc3 {[%clk 0:02:54.9]} 3... Nf6 {[%clk 0:02:51.2]}
4. cxd5 {[%clk 0:02:54.9]} 4... cxd5 {[%clk 0:02:51.1]} 5. Bf4 {[%clk
0:02:54.7]} 5... e6 {[%clk 0:02:46.5]} 6. e3 {[%clk 0:02:54.8]} 6... Bd6 {[%clk
0:02:46.8]} 7. Bxd6 {[%clk 0:02:55.3]} 7... Qxd6 {[%clk 0:02:46.6]} 8. Nf3
{[%clk 0:02:54.3]} 8... O-O {[%clk 0:02:46.5]} 9. Ne5 {[%clk 0:02:54.4]} 9...
Nc6 {[%clk 0:02:46.3]} 10. f4 {[%clk 0:02:54.7]} 10... a6 {[%clk 0:02:46]} 11.
Bd3 {[%clk 0:02:54.6]} 11... b5 {[%clk 0:02:42.5]} 12. O-O {[%clk 0:02:54.6]}
12... Bb7 {[%clk 0:02:42.4]} 13. Rf3 {[%clk 0:02:49.7]} 13... Ne7 {[%clk
0:02:22.3]} 14. Rh3 {[%clk 0:02:24.6]} 14... h6 {[%clk 0:01:59.3]} 15. g4 {[%clk
0:01:55.6]} 15... Ne4 {[%clk 0:01:57.7]} 16. Bxe4 {[%clk 0:01:51.3]} 16... dxe4
{[%clk 0:01:58.6]} 17. g5 {[%clk 0:01:48.6]} 17... Nf5 {[%clk 0:01:51.3]} 18.
gxh6 {[%clk 0:01:48.8]} 18... gxh6 {[%clk 0:01:50.4]} 19. Kh1 {[%clk 0:01:46]}
19... Kh7 {[%clk 0:01:32.8]} 20. Qh5 {[%clk 0:01:45.8]} 20... Qc7 {[%clk
0:00:57.6]} 21. Ng4 {[%clk 0:01:18.7]} 21... Rh8 {[%clk 0:00:44.7]} 22. Nxh6
{[%clk 0:00:58.8]} 22... Ng7 {[%clk 0:00:45.1]} 23. Qxf7 {[%clk 0:00:34.3]}
23... Qxf7 {[%clk 0:00:36.5]} 24. Nxf7+ {[%clk 0:00:35.2]} 24... Kg8 {[%clk
0:00:37.4]} 25. Nxh8 {[%clk 0:00:31.6]} 25... b4 {[%clk 0:00:37.9]} 26. Ne2
{[%clk 0:00:31.2]} 26... Rc8 {[%clk 0:00:36.2]} 27. Rc1 {[%clk 0:00:29.9]} 27...
Rxc1+ {[%clk 0:00:34.6]} 28. Nxc1 {[%clk 0:00:30.8]} 28... Nf5 {[%clk
0:00:34.2]} 29. Ng6 {[%clk 0:00:30.5]} 29... Bd5 {[%clk 0:00:34.8]} 30. Ne5
{[%clk 0:00:29.8]} 30... a5 {[%clk 0:00:30.5]} 31. Rg3+ {[%clk 0:00:29]} 31...
Kf8 {[%clk 0:00:22.4]} 32. a3 {[%clk 0:00:29.1]} 32... b3 {[%clk 0:00:13.8]} 33.
Kg1 {[%clk 0:00:28.8]} 33... a4 {[%clk 0:00:12.5]} 34. Kf2 {[%clk 0:00:29]}
34... Nxg3 {[%clk 0:00:10.5]} 35. hxg3 {[%clk 0:00:29]} 35... Ke7 {[%clk
0:00:11.4]} 36. Ne2 {[%clk 0:00:28.5]} 36... Kf6 {[%clk 0:00:12.3]} 37. Nc3
{[%clk 0:00:29.4]} 37... Bb7 {[%clk 0:00:12.3]} 38. g4 {[%clk 0:00:30.3]} 38...
Ba6 {[%clk 0:00:13.2]} 39. Nxa4 {[%clk 0:00:30.2]} 39... Bd3 {[%clk 0:00:14.1]}
40. Nc5 {[%clk 0:00:30.3]} 1-0

[Event "Early-Titled-Tuesday-Blitz-April-16-2024"]
[Site "Chess.com"]
[Date "2024.04.16"]
[Round "3"]
[White "GMG"]
[Black "SpeedofLight0"]
[Result "1-0"]
[WhiteElo "2810"]
[BlackElo "3075"]
[TimeControl "180+1"]
[EndTime "8:28:50 PDT"]
[Termination "GMG won by resignation"]

1. Nf3 {[%clk 0:03:00.9]} 1... d6 {[%clk 0:02:58.3]} 2. d4 {[%clk 0:03:00.7]}
2... g6 {[%clk 0:02:57.9]} 3. e4 {[%clk 0:03:00.7]} 3... Bg7 {[%clk 0:02:58.3]}
4. Bc4 {[%clk 0:03:01.3]} 4... a6 {[%clk 0:02:57.5]} 5. O-O {[%clk 0:02:59.2]}
5... b5 {[%clk 0:02:57.7]} 6. Bb3 {[%clk 0:02:59.2]} 6... Bb7 {[%clk 0:02:57.4]}
7. Qe2 {[%clk 0:02:58.5]} 7... Nd7 {[%clk 0:02:57.1]} 8. a4 {[%clk 0:02:55.9]}
8... c6 {[%clk 0:02:56.5]} 9. e5 {[%clk 0:02:48.4]} 9... dxe5 {[%clk 0:02:52.9]}
10. dxe5 {[%clk 0:02:48.2]} 10... e6 {[%clk 0:02:52.8]} 11. Bf4 {[%clk
0:02:42.9]} 11... Ne7 {[%clk 0:02:50.4]} 12. Nbd2 {[%clk 0:02:35.1]} 12... Nc5
{[%clk 0:02:41.5]} 13. Ne4 {[%clk 0:02:28]} 13... Nxe4 {[%clk 0:02:40.8]} 14.
Qxe4 {[%clk 0:02:28.9]} 14... O-O {[%clk 0:02:39.6]} 15. Be3 {[%clk 0:02:20.2]}
15... Qc7 {[%clk 0:02:15.9]} 16. Bc5 {[%clk 0:02:20]} 16... Rfd8 {[%clk
0:02:16.2]} 17. a5 {[%clk 0:02:15.6]} 17... Nf5 {[%clk 0:01:51.7]} 18. Bb6
{[%clk 0:02:13.1]} 18... Qe7 {[%clk 0:01:51.3]} 19. Bxd8 {[%clk 0:02:10.6]}
19... Rxd8 {[%clk 0:01:52.2]} 20. Rad1 {[%clk 0:01:52.1]} 20... Rd5 {[%clk
0:01:52.2]} 21. Bxd5 {[%clk 0:01:48.4]} 21... cxd5 {[%clk 0:01:52.5]} 22. Qd3
{[%clk 0:01:39.2]} 22... Qc7 {[%clk 0:01:51.4]} 23. Qc3 {[%clk 0:01:37.5]} 23...
Qd8 {[%clk 0:01:09.6]} 24. Rfe1 {[%clk 0:01:34]} 24... g5 {[%clk 0:01:06.7]} 25.
b4 {[%clk 0:01:30.1]} 25... h5 {[%clk 0:00:55.7]} 26. Nd4 {[%clk 0:01:28.4]}
26... Ne7 {[%clk 0:00:53.3]} 27. Re3 {[%clk 0:01:07.9]} 27... Ng6 {[%clk
0:00:50.7]} 28. Rde1 {[%clk 0:01:08.5]} 28... Qb8 {[%clk 0:00:47.5]} 29. Nf3
{[%clk 0:00:47.5]} 29... g4 {[%clk 0:00:46.9]} 30. Nd2 {[%clk 0:00:47.7]} 30...
Ne7 {[%clk 0:00:40.4]} 31. Nb3 {[%clk 0:00:44.3]} 31... Nf5 {[%clk 0:00:40.4]}
32. R3e2 {[%clk 0:00:43.4]} 32... d4 {[%clk 0:00:35.8]} 33. Nxd4 {[%clk
0:00:42]} 33... Nh4 {[%clk 0:00:36.5]} 34. f4 {[%clk 0:00:37.7]} 34... Qa7
{[%clk 0:00:27.4]} 35. Qe3 {[%clk 0:00:34]} 35... Bf8 {[%clk 0:00:23.4]} 36. c3
{[%clk 0:00:33.9]} 36... Qa8 {[%clk 0:00:22.2]} 37. Qg3 {[%clk 0:00:32.7]} 37...
Ng6 {[%clk 0:00:20.6]} 38. f5 {[%clk 0:00:29.5]} 38... exf5 {[%clk 0:00:20.7]}
39. Nxf5 {[%clk 0:00:28.4]} 39... Bd5 {[%clk 0:00:14.6]} 40. Nd4 {[%clk
0:00:27.8]} 40... Bh6 {[%clk 0:00:13.5]} 41. e6 {[%clk 0:00:24.5]} 41... Bf4
{[%clk 0:00:13.7]} 42. Qf2 {[%clk 0:00:24.1]} 42... Qb8 {[%clk 0:00:10.7]} 43.
g3 {[%clk 0:00:21.7]} 43... Bd6 {[%clk 0:00:10.5]} 44. Qxf7+ {[%clk 0:00:20.8]}
1-0

[Event "Early-Titled-Tuesday-Blitz-April-16-2024"]
[Site "Chess.com"]
[Date "2024.04.16"]
[Round "3"]
[White "Pedrada88"]
[Black "Khromkin"]
[Result "1/2-1/2"]
[WhiteElo "2578"]
[BlackElo "2360"]
[TimeControl "180+1"]
[EndTime "8:28:50 PDT"]
[Termination "Game drawn by repetition"]

1. Nf3 {[%clk 0:03:00.9]} 1... c5 {[%clk 0:02:59.5]} 2. g3 {[%clk 0:03:01.1]}
2... Nc6 {[%clk 0:03:00.1]} 3. Bg2 {[%clk 0:03:01.5]} 3... g6 {[%clk 0:03:00.8]}
4. c3 {[%clk 0:03:01.1]} 4... Bg7 {[%clk 0:03:00.7]} 5. d4 {[%clk 0:03:01.6]}
5... cxd4 {[%clk 0:03:01.3]} 6. cxd4 {[%clk 0:03:02.1]} 6... d6 {[%clk
0:03:01.9]} 7. Nc3 {[%clk 0:03:02.6]} 7... h5 {[%clk 0:03:01.7]} 8. Bg5 {[%clk
0:03:01.4]} 8... Nh6 {[%clk 0:02:58.5]} 9. Rc1 {[%clk 0:03:01]} 9... O-O {[%clk
0:02:54.2]} 10. e4 {[%clk 0:02:57.4]} 10... Bg4 {[%clk 0:02:52.3]} 11. Qd2
{[%clk 0:02:56.8]} 11... Bxf3 {[%clk 0:02:50.1]} 12. Bxf3 {[%clk 0:02:56.3]}
12... Nxd4 {[%clk 0:02:50.8]} 13. Bg2 {[%clk 0:02:52]} 13... Ng4 {[%clk
0:02:50.5]} 14. Nd5 {[%clk 0:02:46.4]} 14... Ne5 {[%clk 0:02:39.3]} 15. Rc3
{[%clk 0:02:20.7]} 15... Re8 {[%clk 0:02:29.7]} 16. O-O {[%clk 0:02:09.2]} 16...
Rc8 {[%clk 0:02:24]} 17. Rfc1 {[%clk 0:01:56.5]} 17... Rxc3 {[%clk 0:02:18]} 18.
Rxc3 {[%clk 0:01:57.4]} 18... Nec6 {[%clk 0:02:14.3]} 19. h4 {[%clk 0:01:45.6]}
19... Ne6 {[%clk 0:02:12.9]} 20. Rb3 {[%clk 0:01:45.6]} 20... Nxg5 {[%clk
0:02:12.2]} 21. hxg5 {[%clk 0:01:45]} 21... b6 {[%clk 0:02:06.9]} 22. a4 {[%clk
0:01:33.2]} 22... Qd7 {[%clk 0:01:53.3]} 23. Kh2 {[%clk 0:01:29.7]} 23... Ne5
{[%clk 0:01:38.2]} 24. a5 {[%clk 0:01:18]} 24... b5 {[%clk 0:01:25.7]} 25. a6
{[%clk 0:01:14.2]} 25... Qc6 {[%clk 0:01:13]} 26. f3 {[%clk 0:00:47.2]} 26... e6
{[%clk 0:00:57.7]} 27. Nf6+ {[%clk 0:00:40.8]} 27... Bxf6 {[%clk 0:00:52.3]} 28.
gxf6 {[%clk 0:00:41.7]} 28... Nd7 {[%clk 0:00:46.3]} 29. Rd3 {[%clk 0:00:37.4]}
29... Nxf6 {[%clk 0:00:43.6]} 30. Rxd6 {[%clk 0:00:37.6]} 30... Qc5 {[%clk
0:00:38.9]} 31. b4 {[%clk 0:00:33.6]} 31... Qc7 {[%clk 0:00:32.7]} 32. Qd4
{[%clk 0:00:31.7]} 32... Nd5 {[%clk 0:00:30.1]} 33. Qc5 {[%clk 0:00:26.4]} 33...
Qxc5 {[%clk 0:00:20.6]} 34. bxc5 {[%clk 0:00:27.3]} 34... Nb4 {[%clk 0:00:21.3]}
35. Bf1 {[%clk 0:00:22.4]} 35... Rc8 {[%clk 0:00:19.9]} 36. Bxb5 {[%clk
0:00:19]} 36... Rxc5 {[%clk 0:00:20.5]} 37. Rd8+ {[%clk 0:00:18.4]} 37... Kg7
{[%clk 0:00:20.1]} 38. Be8 {[%clk 0:00:16.3]} 38... Rc7 {[%clk 0:00:17.9]} 39.
Bb5 {[%clk 0:00:14.8]} 39... Rc5 {[%clk 0:00:17.8]} 40. Be8 {[%clk 0:00:15.1]}
40... Rc7 {[%clk 0:00:17.5]} 41. Bb5 {[%clk 0:00:13.2]} 41... Rc5 {[%clk
0:00:17.7]} 1/2-1/2

[Event "Early-Titled-Tuesday-Blitz-April-16-2024"]
[Site "Chess.com"]
[Date "2024.04.16"]
[Round "3"]
[White "Juicy_Fork"]
[Black "IsmaelAmadorGarcia"]
[Result "0-1"]
[WhiteElo "2512"]
[BlackElo "2336"]
[TimeControl "180+1"]
[EndTime "8:28:52 PDT"]
[Termination "IsmaelAmadorGarcia won by checkmate"]

1. e4 {[%clk 0:03:00.9]} 1... e5 {[%clk 0:02:59.2]} 2. Nf3 {[%clk 0:02:57.9]}
2... Nc6 {[%clk 0:02:59.5]} 3. Bb5 {[%clk 0:02:56.3]} 3... a6 {[%clk 0:02:59.8]}
4. Ba4 {[%clk 0:02:55.4]} 4... Nf6 {[%clk 0:02:59.9]} 5. O-O {[%clk 0:02:55.3]}
5... Be7 {[%clk 0:03:00.2]} 6. Re1 {[%clk 0:02:52.1]} 6... b5 {[%clk 0:03:00.2]}
7. Bb3 {[%clk 0:02:51.8]} 7... O-O {[%clk 0:03:00.9]} 8. a4 {[%clk 0:02:47.8]}
8... Bb7 {[%clk 0:03:00.2]} 9. c3 {[%clk 0:02:46.6]} 9... d5 {[%clk 0:02:50.6]}
10. exd5 {[%clk 0:02:42.5]} 10... Nxd5 {[%clk 0:02:51.5]} 11. d3 {[%clk
0:02:39.2]} 11... Na5 {[%clk 0:02:22]} 12. Bc2 {[%clk 0:02:30.2]} 12... b4
{[%clk 0:02:18.9]} 13. Nxe5 {[%clk 0:02:24.5]} 13... bxc3 {[%clk 0:02:16]} 14.
bxc3 {[%clk 0:02:22.5]} 14... Bf6 {[%clk 0:02:13.7]} 15. d4 {[%clk 0:02:15.6]}
15... Re8 {[%clk 0:01:55]} 16. Bxh7+ {[%clk 0:01:54.2]} 16... Kxh7 {[%clk
0:01:54.9]} 17. Qh5+ {[%clk 0:01:54.2]} 17... Kg8 {[%clk 0:01:54.5]} 18. Qxf7+
{[%clk 0:01:55.1]} 18... Kh8 {[%clk 0:01:43.4]} 19. Bh6 {[%clk 0:01:44.4]} 19...
Bxe5 {[%clk 0:01:31.2]} 20. Rxe5 {[%clk 0:01:38.6]} 20... gxh6 {[%clk
0:01:27.9]} 21. Nd2 {[%clk 0:01:36.8]} 21... Rxe5 {[%clk 0:01:20.9]} 22. dxe5
{[%clk 0:01:37.7]} 22... Qf8 {[%clk 0:01:09.6]} 23. Qd7 {[%clk 0:01:23.8]} 23...
Rd8 {[%clk 0:01:05.3]} 24. Qg4 {[%clk 0:01:20.7]} 24... Qg7 {[%clk 0:00:54.2]}
25. Qh4 {[%clk 0:01:18.1]} 25... Rg8 {[%clk 0:00:53.5]} 26. g3 {[%clk
0:01:17.9]} 26... Qg5 {[%clk 0:00:51.3]} 27. Qd4 {[%clk 0:01:14.6]} 27... Rd8
{[%clk 0:00:39.7]} 28. Ne4 {[%clk 0:01:12.5]} 28... Qf5 {[%clk 0:00:38.4]} 29.
e6+ {[%clk 0:01:08.8]} 29... Kh7 {[%clk 0:00:37.8]} 30. c4 {[%clk 0:00:59.4]}
30... Nb3 {[%clk 0:00:34.9]} 31. Qb2 {[%clk 0:00:51.7]} 31... Qxe4 {[%clk
0:00:21.8]} 32. Qxb3 {[%clk 0:00:42.2]} 32... Nc3 {[%clk 0:00:20.3]} 33. f3
{[%clk 0:00:33.3]} 33... Qxf3 {[%clk 0:00:19.4]} 34. Qc2+ {[%clk 0:00:32.7]}
34... Be4 {[%clk 0:00:15.7]} 35. e7 {[%clk 0:00:31.2]} 35... Re8 {[%clk
0:00:13.5]} 36. Qd2 {[%clk 0:00:08.5]} 36... Ne2+ {[%clk 0:00:11.3]} 37. Qxe2
{[%clk 0:00:07.7]} 37... Qxe2 {[%clk 0:00:11.9]} 38. Ra2 {[%clk 0:00:08]} 38...
Qe1# {[%clk 0:00:11.4]} 0-1

[Event "Early-Titled-Tuesday-Blitz-April-16-2024"]
[Site "Chess.com"]
[Date "2024.04.16"]
[Round "3"]
[White "jbking07"]
[Black "karinachess1"]
[Result "0-1"]
[WhiteElo "2427"]
[BlackElo "2610"]
[TimeControl "180+1"]
[EndTime "8:28:53 PDT"]
[Termination "karinachess1 won on time"]

1. e4 {[%clk 0:03:00.9]} 1... e5 {[%clk 0:03:00.1]} 2. Nf3 {[%clk 0:02:54.7]}
2... Nc6 {[%clk 0:03:00.2]} 3. d4 {[%clk 0:02:55.1]} 3... exd4 {[%clk
0:03:00.2]} 4. Nxd4 {[%clk 0:02:56]} 4... Bc5 {[%clk 0:03:00.1]} 5. Nb3 {[%clk
0:02:54.9]} 5... Bb6 {[%clk 0:03:00.4]} 6. Nc3 {[%clk 0:02:54.5]} 6... Nf6
{[%clk 0:03:00.9]} 7. Qe2 {[%clk 0:02:50.6]} 7... O-O {[%clk 0:03:00.9]} 8. Be3
{[%clk 0:02:50.1]} 8... Re8 {[%clk 0:03:00.6]} 9. f3 {[%clk 0:02:49.9]} 9... d5
{[%clk 0:03:00.9]} 10. O-O-O {[%clk 0:02:50]} 10... d4 {[%clk 0:03:00.2]} 11.
Na4 {[%clk 0:02:34.6]} 11... Be6 {[%clk 0:02:36.3]} 12. g4 {[%clk 0:01:58.1]}
12... Nb4 {[%clk 0:02:04.5]} 13. Kb1 {[%clk 0:01:45.5]} 13... Qd7 {[%clk
0:01:36.1]} 14. Nxb6 {[%clk 0:01:07.4]} 14... axb6 {[%clk 0:01:34.5]} 15. Rxd4
{[%clk 0:01:06.2]} 15... Qe7 {[%clk 0:01:19.2]} 16. a3 {[%clk 0:00:49.6]} 16...
c5 {[%clk 0:01:16.1]} 17. Rd1 {[%clk 0:00:39.6]} 17... Nc6 {[%clk 0:00:57.4]}
18. Bc1 {[%clk 0:00:27.5]} 18... Red8 {[%clk 0:00:44.7]} 19. g5 {[%clk
0:00:20.8]} 19... Ne8 {[%clk 0:00:26.4]} 20. Rxd8 {[%clk 0:00:20.2]} 20... Rxd8
{[%clk 0:00:26.2]} 21. h4 {[%clk 0:00:14.5]} 21... c4 {[%clk 0:00:24.5]} 22. Nd2
{[%clk 0:00:13]} 22... Nd4 {[%clk 0:00:17.7]} 23. Qe3 {[%clk 0:00:13.4]} 23...
b5 {[%clk 0:00:17.7]} 24. Bh3 {[%clk 0:00:10.4]} 24... Nc7 {[%clk 0:00:16.8]}
25. Bxe6 {[%clk 0:00:10]} 25... Ncxe6 {[%clk 0:00:17.7]} 26. f4 {[%clk
0:00:10.5]} 26... Nc5 {[%clk 0:00:15.1]} 27. Re1 {[%clk 0:00:08.6]} 27... Na4
{[%clk 0:00:13.6]} 28. Nf3 {[%clk 0:00:07.4]} 28... Nxf3 {[%clk 0:00:13]} 29.
Qxf3 {[%clk 0:00:07.1]} 29... b4 {[%clk 0:00:13.6]} 30. Rd1 {[%clk 0:00:03.3]}
30... Rxd1 {[%clk 0:00:11.7]} 31. Qxd1 {[%clk 0:00:04.2]} 31... bxa3 {[%clk
0:00:12.6]} 32. bxa3 {[%clk 0:00:04.4]} 32... Nc3+ {[%clk 0:00:12.9]} 0-1

[Event "Early-Titled-Tuesday-Blitz-April-16-2024"]
[Site "Chess.com"]
[Date "2024.04.16"]
[Round "3"]
[White "BogdanDeac"]
[Black "The_Sherman_Variation"]
[Result "1-0"]
[WhiteElo "3025"]
[BlackElo "2717"]
[TimeControl "180+1"]
[EndTime "8:28:54 PDT"]
[Termination "BogdanDeac won by resignation"]

1. Nf3 {[%clk 0:03:00.9]} 1... d5 {[%clk 0:02:59.4]} 2. e3 {[%clk 0:03:00.3]}
2... Nf6 {[%clk 0:02:57.9]} 3. c4 {[%clk 0:03:00.4]} 3... e6 {[%clk 0:02:55.1]}
4. b3 {[%clk 0:03:00.7]} 4... c5 {[%clk 0:02:52.3]} 5. Bb2 {[%clk 0:03:00.5]}
5... Nc6 {[%clk 0:02:52.9]} 6. cxd5 {[%clk 0:03:01.1]} 6... exd5 {[%clk
0:02:53.4]} 7. Bb5 {[%clk 0:03:01.6]} 7... Bd6 {[%clk 0:02:52.1]} 8. O-O {[%clk
0:03:01.5]} 8... O-O {[%clk 0:02:51.5]} 9. h3 {[%clk 0:03:01.7]} 9... Be6 {[%clk
0:02:47.3]} 10. Bxc6 {[%clk 0:02:51.5]} 10... bxc6 {[%clk 0:02:42.2]} 11. Nc3
{[%clk 0:02:52.1]} 11... Ne4 {[%clk 0:02:35.1]} 12. Ne2 {[%clk 0:02:44.7]} 12...
Rb8 {[%clk 0:02:27.8]} 13. d3 {[%clk 0:02:40.9]} 13... Nf6 {[%clk 0:02:22.1]}
14. Rc1 {[%clk 0:02:33.4]} 14... Nd7 {[%clk 0:02:11.5]} 15. Nf4 {[%clk
0:02:30.5]} 15... Bxf4 {[%clk 0:02:06.3]} 16. exf4 {[%clk 0:02:30.2]} 16... Rb4
{[%clk 0:01:55.7]} 17. Qd2 {[%clk 0:02:21.7]} 17... a5 {[%clk 0:01:49.3]} 18.
Ba3 {[%clk 0:01:51.8]} 18... Rb5 {[%clk 0:01:47.2]} 19. d4 {[%clk 0:01:52.2]}
19... Nf6 {[%clk 0:01:37.6]} 20. dxc5 {[%clk 0:01:35.3]} 20... Ne4 {[%clk
0:01:34.5]} 21. Qd3 {[%clk 0:01:35.5]} 21... Qf6 {[%clk 0:01:32.9]} 22. Nd4
{[%clk 0:01:33.9]} 22... Rbb8 {[%clk 0:01:21.8]} 23. Nxc6 {[%clk 0:01:32.4]}
23... Rbc8 {[%clk 0:01:21.2]} 24. Nd4 {[%clk 0:01:24.9]} 24... Qxf4 {[%clk
0:01:19.1]} 25. c6 {[%clk 0:01:11.3]} 25... Rfe8 {[%clk 0:01:18.4]} 26. Bb2
{[%clk 0:00:41.1]} 26... Ng5 {[%clk 0:01:11.5]} 27. Qg3 {[%clk 0:00:31.6]} 27...
Qxg3 {[%clk 0:00:54]} 28. fxg3 {[%clk 0:00:32.5]} 28... Ne4 {[%clk 0:00:53.3]}
29. g4 {[%clk 0:00:32.6]} 29... h5 {[%clk 0:00:39.7]} 30. gxh5 {[%clk
0:00:31.3]} 30... f6 {[%clk 0:00:38.4]} 31. Bc3 {[%clk 0:00:29.3]} 31... Bf7
{[%clk 0:00:30]} 32. Bxa5 {[%clk 0:00:28.7]} 32... Bxh5 {[%clk 0:00:28.1]} 33.
b4 {[%clk 0:00:29.1]} 33... Nd2 {[%clk 0:00:25.8]} 34. Rf5 {[%clk 0:00:26.3]}
34... Bg6 {[%clk 0:00:22.3]} 35. Rxd5 {[%clk 0:00:25.4]} 35... Bf7 {[%clk
0:00:20.4]} 36. Rd7 {[%clk 0:00:25.4]} 36... Ne4 {[%clk 0:00:17.6]} 37. b5
{[%clk 0:00:24.1]} 37... Ra8 {[%clk 0:00:16.6]} 38. c7 {[%clk 0:00:21.8]} 38...
Bxa2 {[%clk 0:00:13.3]} 39. b6 {[%clk 0:00:21.2]} 39... Rxa5 {[%clk 0:00:12.4]}
40. b7 {[%clk 0:00:18.2]} 1-0

[Event "Early-Titled-Tuesday-Blitz-April-16-2024"]
[Site "Chess.com"]
[Date "2024.04.16"]
[Round "3"]
[White "Iuckyducky"]
[Black "KINGOF2SOAP"]
[Result "1-0"]
[WhiteElo "2272"]
[BlackElo "2475"]
[TimeControl "180+1"]
[EndTime "8:28:54 PDT"]
[Termination "Iuckyducky won by checkmate"]

1. e4 {[%clk 0:01:57.1]} 1... d5 {[%clk 0:02:59]} 2. exd5 {[%clk 0:01:56.7]}
2... Qxd5 {[%clk 0:02:59.9]} 3. Nc3 {[%clk 0:01:57.4]} 3... Qd6 {[%clk
0:03:00.5]} 4. d4 {[%clk 0:01:57.2]} 4... Nf6 {[%clk 0:03:00.6]} 5. Bd3 {[%clk
0:01:43.8]} 5... c6 {[%clk 0:02:54.9]} 6. Nge2 {[%clk 0:01:40.8]} 6... Nbd7
{[%clk 0:02:37.6]} 7. Bf4 {[%clk 0:01:33.9]} 7... Qb4 {[%clk 0:02:34]} 8. Qd2
{[%clk 0:00:55.8]} 8... e6 {[%clk 0:02:14.7]} 9. O-O-O {[%clk 0:00:52.6]} 9...
a5 {[%clk 0:02:08.3]} 10. a3 {[%clk 0:00:45.6]} 10... Qb6 {[%clk 0:01:58.5]} 11.
f3 {[%clk 0:00:39]} 11... a4 {[%clk 0:01:36.7]} 12. g4 {[%clk 0:00:37.6]} 12...
Qd8 {[%clk 0:01:28.6]} 13. Ne4 {[%clk 0:00:31.8]} 13... b5 {[%clk 0:01:18.5]}
14. Nd6+ {[%clk 0:00:31.2]} 14... Bxd6 {[%clk 0:01:17.7]} 15. Bxd6 {[%clk
0:00:32.1]} 15... Nd5 {[%clk 0:01:09.3]} 16. Nc3 {[%clk 0:00:03.8]} 16... N7b6
{[%clk 0:01:04.6]} 17. Ne4 {[%clk 0:00:04.1]} 17... Bb7 {[%clk 0:00:50.5]} 18.
Bc5 {[%clk 0:00:04.2]} 18... Nc8 {[%clk 0:00:38.7]} 19. Rde1 {[%clk 0:00:04.8]}
19... Nde7 {[%clk 0:00:33.2]} 20. f4 {[%clk 0:00:05.3]} 20... O-O {[%clk
0:00:33.4]} 21. h4 {[%clk 0:00:05.4]} 21... Re8 {[%clk 0:00:33.5]} 22. Ng5
{[%clk 0:00:05.4]} 22... h6 {[%clk 0:00:32.1]} 23. Bh7+ {[%clk 0:00:05.4]} 23...
Kh8 {[%clk 0:00:31.7]} 24. Nxf7+ {[%clk 0:00:05.6]} 24... Kxh7 {[%clk
0:00:31.3]} 25. Nxd8 {[%clk 0:00:06.1]} 25... Rxd8 {[%clk 0:00:31.1]} 26. Qd3+
{[%clk 0:00:06.7]} 26... Kg8 {[%clk 0:00:30.8]} 27. f5 {[%clk 0:00:07.2]} 27...
Na7 {[%clk 0:00:26.7]} 28. Bxe7 {[%clk 0:00:06.3]} 28... Re8 {[%clk 0:00:26.2]}
29. Rxe6 {[%clk 0:00:06.9]} 29... Bc8 {[%clk 0:00:24.1]} 30. Rhe1 {[%clk
0:00:07]} 30... Bxe6 {[%clk 0:00:23.8]} 31. Rxe6 {[%clk 0:00:07.9]} 31... Nc8
{[%clk 0:00:24.3]} 32. f6 {[%clk 0:00:08]} 32... Nxe7 {[%clk 0:00:21.8]} 33.
fxe7 {[%clk 0:00:06.5]} 33... Ra7 {[%clk 0:00:21.3]} 34. Qe4 {[%clk 0:00:05.6]}
34... Kf7 {[%clk 0:00:19.5]} 35. g5 {[%clk 0:00:05.7]} 35... hxg5 {[%clk
0:00:19]} 36. hxg5 {[%clk 0:00:06.1]} 36... Rexe7 {[%clk 0:00:18.9]} 37. g6+
{[%clk 0:00:06.3]} 37... Ke8 {[%clk 0:00:19.1]} 38. Qxc6+ {[%clk 0:00:04.5]}
38... Kf8 {[%clk 0:00:18.5]} 39. Qc8+ {[%clk 0:00:03.2]} 39... Re8 {[%clk
0:00:16.5]} 40. Qxe8# {[%clk 0:00:04]} 1-0